Cogmind - Beta 11 *** ADVENTURER MODE // 2022.04.16 @ 15:46:32 Player: Jinn Result: Self-destructed Performance ------------- Evolutions (2) 1000 Regions Visited (4) 800 Robots Destroyed (77) 385 Value Destroyed (2732) 2732 Prototype IDs (4) 80 Alien Tech Used (0) 0 Bonus (1113) 1113 TOTAL SCORE: 6110 Bonus ------- High Alert Combat Kills 413 Entered Garrisons 200 Used RIF Installer 500 Cogmind --------- Core Integrity 167/550 Matter 300/300 Energy 280/280 System Corruption 0% Temperature Cool (0) Movement Core (800) Ox15 Location -8/Garrison Parts ------- > --- POWER (1) -------- Heavy Ion Engine > --- PROPULSION (2) --- (None) > --- UTILITY (4) ------ Large Storage Unit Large Storage Unit Hacking Suite Relay Coupler [Sentry] (28) > --- WEAPON (4) ------- (None) > --- INVENTORY (15) --- Light Nuclear Core Hardened Medium Armor Plating Improved Light Armor Plating Relay Coupler [Cutter] (26) Peak State ------------ > --- POWER ------------ Heavy Ion Engine > --- PROPULSION ------- Armored Wheel Armored Wheel > --- UTILITY ---------- Large Storage Unit Large Storage Unit Hardened Medium Armor Plating Hacking Suite > --- WEAPON ----------- High-powered Shotgun Katana > --- INVENTORY -------- Heavy Ion Engine Light Nuclear Core Armored Wheel Hardened Medium Armor Plating Improved Light Armor Plating Relay Coupler [Cutter] Relay Coupler [Sentry] [Rating: 23] Favorites ----------- Power Heavy Ion Engine Engine Heavy Ion Engine Propulsion Armored Wheel Treads Light Treads Leg Improved Aluminum Leg Wheel Armored Wheel Utility Large Storage Unit Storage Large Storage Unit Hackware Hacking Suite Protection Power Shielding Weapon Katana Energy Gun EM Shotgun Energy Cannon Light EM Pulse Cannon Ballistic Gun Light Assault Rifle Launcher Mini Grenade Launcher Impact Weapon Maul Slashing Weapon Katana Special Melee Weapon Datajack Build | -11 -10 -9 -8 -8 ------- Run | Scr Mat Mat Mat Gar Slots Evolved 4 | . . 2 2 . Power . | . . . . . Propulsion . | . . . . . Utility 2 | . . . 2 . Weapon 2 | . . 2 . . Parts Attached 41 | 6 4 18 10 3 Power 7 | 1 1 3 1 1 Engine 7 | 1 1 3 1 1 Core . | . . . . . Reactor . | . . . . . Propulsion 8 | 2 . 4 1 1 Treads 2 | 2 . . . . Leg 2 | . . 2 . . Wheel 4 | . . 2 1 1 Hover . | . . . . . Flight . | . . . . . Utility 11 | 1 2 2 5 1 Device . | . . . . . Storage 3 | 1 . . 2 . Processor . | . . . . . Hackware 2 | . . . 1 1 Protection 6 | . 2 2 2 . Artifact . | . . . . . Weapon 15 | 2 1 9 3 . Energy Gun 2 | . . 2 . . Energy Cannon 1 | . . 1 . . Ballistic Gun 4 | 2 . 1 1 . Ballistic Cannon . | . . . . . Launcher 2 | . . 2 . . Special Weapon . | . . . . . Impact Weapon 1 | . . 1 . . Slashing Weapon 2 | . . 1 1 . Piercing Weapon . | . . . . . Special Melee Weapon 3 | . 1 1 1 . Unidentified Prototypes 1 | . . 1 . . Parts Lost 8 | . . 1 1 6 Power 1 | . . . . 1 Propulsion 2 | . . . . 2 Utility 1 | . . . . 1 Weapon 4 | . . 1 1 2 Highest Loss Streak 3 | . . 1 1 3 To Critical Strikes . | . . . . . Average Slot Usage (%) 82 | . 97 84 75 73 Engine 10 | . 14 11 9 8 Treads 5 | . 28 4 . . Leg 6 | . . 15 . . Wheel 8 | . . 2 18 16 Storage 14 | . 14 11 17 18 Hackware 4 | . . . 9 13 Protection 9 | . 11 11 9 3 Ballistic Gun 9 | . 25 8 3 4 Launcher 1 | . . 4 . . Slashing Weapon 6 | . . 6 9 8 Special Melee Weapon 3 | . 2 5 1 . Naked Turns . | . . . . . Heaviest Build 61 | 11 12 19 61 61 Greatest Support 40 | 40 40 40 24 24 Greatest Overweight (x) 15 | . . . 2 15 Average Overweight (x) . | . . . 1 2 Largest Inventory Capacity 15 | 8 8 8 15 15 Average Capacity 10 | 7 8 8 14 15 Most Carried 9 | 5 4 8 9 7 Average Carried 5 | 2 2 5 6 5 Final Capacity 15 | 8 8 8 15 15 Final Carried 6 | 2 2 6 5 4 Class Distribution -------------------- 47% | Mutant 37% | Hacker-Mutant 11% | Tank 3% | Scavenger-Mutant Dominant Class ---------------- Mutant | -10/Materials Mutant | -9/Materials Hacker-Mutant | -8/Materials Hacker-Mutant | -8/Garrison Resources | -11 -10 -9 -8 -8 ----------- Run | Scr Mat Mat Mat Gar Matter Collected 1000 | 234 120 498 123 25 Remotely . | . . . . . Salvage Created 3282 | . 289 980 1259 754 Parts 171 | . 10 62 64 35 Haulers Intercepted 5 | . . 3 2 . Recyclers Shooed 2 | . 1 1 . . Parts Field Recycled . | . . . . . Retrieved Matter . | . . . . . Parts Self-Destructed . | . . . . . Prevented . | . . . . . Kills | -11 -10 -9 -8 -8 ------- Run | Scr Mat Mat Mat Gar Combat Hostiles Destroyed 61 | . 4 20 22 15 Melee 41 | . . 7 19 15 Guns 13 | . 4 6 3 . Cannons 4 | . . 4 . . AOE 3 | . . 3 . . Classes Destroyed 10 | . 2 8 . . Worker 1 | . . 1 . . Builder 3 | . . 3 . . Hauler 5 | . . 3 2 . Recycler 3 | . 1 . 2 . Operator 1 | . . 1 . . Watcher 3 | . . 3 . . Swarmer 15 | . . 6 3 6 Grunt 32 | . 4 6 16 6 Duelist 1 | . . 1 . . Sentry 13 | . . 7 3 3 Best Kill Streak 11 | . 5 11 6 7 Combat Bots Only 7 | . 4 7 5 7 Max Kills in Single Turn 2 | . 1 2 1 1 Gunslinging . | . . . . . Exploded 1 | . . 1 . . Melee 1 | . . 1 1 1 Uniques/NPCs Destroyed . | . . . . . Combat | -11 -10 -9 -8 -8 -------- Run | Scr Mat Mat Mat Gar Damage Taken 2772 | . 356 640 570 1206 Core 586 | . 59 144 116 267 Absorbed by Shields 3 | . . . . 3 Redirected to Shielding 51 | . 14 37 . . Core Remaining (%) 80 | 100 76 64 . . Volleys Fired 81 | . 18 56 7 . Largest 4 | . 2 4 1 . Hottest 126 | . 40 126 25 . Shots Fired 178 | . 34 137 7 . Gun 138 | . 34 97 7 . Cannon 26 | . . 26 . . Launcher 14 | . . 14 . . Special . | . . . . . Kinetic 123 | . 34 82 7 . Thermal 9 | . . 9 . . Explosive 14 | . . 14 . . Electromagnetic 32 | . . 32 . . Robot Hit Streak 21 | . 20 20 21 . Robot Miss Streak 2 | . 1 2 2 . Penetration Max . | . . . . . Secondary Targets 2 | . 2 . . . Max Gunslinging Chain 1 | . 1 . . . Shots Hit Robots 242 | . 27 116 53 46 Core Hits 107 | . 16 39 33 19 Critical Kills . | . . . . . Critical Parts Destroyed 1 | . . 1 . . Critical Strikes 11 | . . 5 4 2 Burn 1 | . . 1 . . Destroy 1 | . . 1 . . Corrupt 1 | . . 1 . . Sever 8 | . . 2 4 2 Melee Attacks 140 | . . 36 51 53 Impact . | . . . . . Slashing 130 | . . 26 51 53 Piercing . | . . . . . Sneak Attacks 13 | . . 9 4 . Combat Hostiles . | . . . . . Follow-up Attacks . | . . . . . Damage Inflicted 6085 | . 284 2453 1720 1628 Guns 1176 | . 284 752 140 . Cannons 453 | . . 453 . . Explosions 574 | . . 574 . . Melee 3882 | . . 674 1580 1628 Ramming . | . . . . . Kinetic 947 | . 284 523 140 . Thermal 160 | . . 160 . . Explosive 545 | . . 545 . . Electromagnetic 551 | . . 551 . . Impact . | . . . . . Slashing 3882 | . . 674 1580 1628 Piercing . | . . . . . Highest Corruption . | . . . . . Average Corruption . | . . . . . Corruption Purged . | . . . . . Corruption Blocked . | . . . . . Overload Shots . | . . . . . Overflow Damage 226 | . . 97 44 85 Projectiles 16 | . . 16 . . Explosions 12 | . . 12 . . Melee 198 | . . 69 44 85 Knockbacks . | . . . . . Impact . | . . . . . Kinetic . | . . . . . Secondary . | . . . . . Self-Inflicted Damage 28 | . . 28 . . Shots 1 | . . 1 . . Rammed . | . . . . . Targets Rammed 1 | . . 1 . . Kicked 1 | . . 1 . . Crushed . | . . . . . Highest Temperature 302 | . 49 302 9 22 Average Temperature 75 | . 19 91 5 10 Received Heat Transfer 1593 | . 273 279 369 672 Effects 1 | . . 1 . . Interference 1 | . . 1 . . Siege Activations . | . . . . . Robots Corrupted . | . . . . . Combat Hostiles . | . . . . . Parts Fried 2 | . . 2 . . Impact Corruptions . | . . . . . Robots Melted . | . . . . . Combat Hostiles . | . . . . . Parts Melted 2 | . . 2 . . Heat Transferred 457 | . . 457 . . Parts Sabotaged . | . . . . . Parts Stolen . | . . . . . Parts Stripped . | . . . . . Power Chain Reactions 1 | . . 1 . . Missiles Intercepted . | . . . . . Alert | -11 -10 -9 -8 -8 ------- Run | Scr Mat Mat Mat Gar Peak Influence 826 | . 120 682 705 826 Initial 401 | . . 43 204 401 Average 412 | . 42 433 459 653 Maximum Alert Level 3 | . . 3 3 3 Low Security (%) 23 | 100 100 15 . . Level 1 18 | . . 25 37 . Level 2 46 | . . 58 54 51 Level 3 10 | . . . 7 48 Level 4 . | . . . . . Level 5 . | . . . . . High Security . | . . . . . Max Security . | . . . . . Squads Dispatched 6 | . . 4 2 . Investigation 2 | . . . 2 . Extermination . | . . . . . Reinforcement 4 | . . 4 . . Assault . | . . . . . Garrison . | . . . . . Intercept . | . . . . . Searches Triggered . | . . . . . Construction Impeded 1 | . . 1 . . Haulers Reinforced . | . . . . . Active Scanning Responses . | . . . . . Cargo Convoy Interrupts . | . . . . . Stealth | -11 -10 -9 -8 -8 --------- Run | Scr Mat Mat Mat Gar Distress Signals 5 | . . 4 1 . Communications Jammed . | . . . . . Distress Signals . | . . . . . Times Spotted 90 | . 7 36 28 19 Peak Tracking Total 6 | . 5 6 5 5 Tactical Retreats 8 | . . 1 6 1 Traps | -11 -10 -9 -8 -8 ------- Run | Scr Mat Mat Mat Gar Traps Triggered 3 | . . . 1 2 Indirectly . | . . . . . Trap Hack Attempts . | . . . . . Triggered . | . . . . . Disarmed . | . . . . . Reprogrammed . | . . . . . Reused . | . . . . . Traps Extracted . | . . . . . Installed . | . . . . . Triggered . | . . . . . Machines | -11 -10 -9 -8 -8 ---------- Run | Scr Mat Mat Mat Gar Machines Disabled 5 | . . 3 . 2 Max in Single Turn 1 | . . 1 . 1 Garrison Relay 2 | . . . . 2 Machines Sabotaged . | . . . . . Garrisons Compromised . | . . . . . Overloaded Fab Kills . | . . . . . Hacking | -11 -10 -9 -8 -8 --------- Run | Scr Mat Mat Mat Gar Machines Accessed 9 | . 2 5 2 . Terminals 6 | . 1 4 1 . Fabricators . | . . . . . Repair Stations . | . . . . . Recycling Units 2 | . 1 1 . . Scanalyzers . | . . . . . Garrison Access 1 | . . . 1 . Total Hacks 22 | . 5 12 5 . Successful 16 | . 4 8 4 . Failed 6 | . 1 4 1 . Catastrophic . | . . . . . Database Lockouts . | . . . . . Manual . | . . . . . Terminals 15 | . 1 11 3 . Fabricators . | . . . . . Repair Stations . | . . . . . Recycling Units 5 | . 4 1 . . Scanalyzers . | . . . . . Garrison Access 2 | . . . 2 . Terminal Hacks 12 | . 1 8 3 . Record 3 | . . 3 . . Prototype ID Bank 2 | . 1 . 1 . Alert Level 2 | . . 1 1 . Unreport Threat 1 | . . 1 . . Dispatch Records 2 | . . 2 . . Hauler Manifests 2 | . . 1 1 . Fabricator Hacks . | . . . . . Repair Station Hacks . | . . . . . Recycling Unit Hacks 3 | . 3 . . . Process 1 | . 1 . . . Report Inventory 1 | . 1 . . . Retrieve Matter 1 | . 1 . . . Scanalyzer . | . . . . . Garrison Access Hacks 1 | . . . 1 . Unlock Access 1 | . . . 1 . Unauthorized Hacks . | . . . . . Terminals . | . . . . . Fabricators . | . . . . . Repair Stations . | . . . . . Recycling Units . | . . . . . Scanalyzers . | . . . . . Garrison Access . | . . . . . Data Cores Recovered . | . . . . . Used . | . . . . . Hacking Detections 7 | . 2 3 2 . Full Trace Events 1 | . . . 1 . Feedback Events . | . . . . . Feedback Blocked . | . . . . . Robot Schematics Acquired . | . . . . . Robots Built . | . . . . . Authchips . | . . . . . Time . | . . . . . Total Robot Build Rating . | . . . . . Part Schematics Acquired . | . . . . . Parts Built . | . . . . . Authchips . | . . . . . Time . | . . . . . Total Part Build Rating . | . . . . . Parts Repaired . | . . . . . Time . | . . . . . Parts Recycled . | . . . . . Recycled Matter 2 | . 2 . . . Retrieved Matter 2 | . 2 . . . Retrieved Components . | . . . . . Parts Scanalyzed . | . . . . . Part Schematics Acquired . | . . . . . Parts Damaged . | . . . . . Bothacking | -11 -10 -9 -8 -8 ------------ Run | Scr Mat Mat Mat Gar Used RIF Installer 1 | . . . . 1 Robots Hacked 3 | . . 3 . . Non-combat 3 | . . 3 . . Combat . | . . . . . Robot Hacks Applied 6 | . . 6 . . parse_system 3 | . . 3 . . no_distress 1 | . . 1 . . find_station 1 | . . 1 . . check_alert 1 | . . 1 . . Relay Couplers Released 8 | . . . . 8 Machine Destruction 8 | . . . . 8 Attached 1 | . . . . 1 Fabnet Peak Effective % . | . . . . . Robots Rewired . | . . . . . Allies Hacked . | . . . . . Hacks Repelled . | . . . . . Allies | -11 -10 -9 -8 -8 -------- Run | Scr Mat Mat Mat Gar Total Allies . | . . . . . Largest Group . | . . . . . Highest-Rated Group . | . . . . . Highest-Rated Ally . | . . . . . Total Orders . | . . . . . Ally Attacks . | . . . . . Total Damage . | . . . . . Kills . | . . . . . Allies Corrupted . | . . . . . Allies Melted . | . . . . . Intel | -11 -10 -9 -8 -8 ------- Run | Scr Mat Mat Mat Gar Robot Analysis Total . | . . . . . Derelict Logs Recovered . | . . . . . Drone Launches . | . . . . . Drone Recoveries . | . . . . . Exploration | -11 -10 -9 -8 -8 ------------- Run | Scr Mat Mat Mat Gar Turns Passed 2665 | 87 374 1123 571 510 Spaces Moved 1567 | 65 196 681 337 288 Core 27 | 26 . . . 1 Treads 332 | 39 196 97 . . Legs 467 | . . 467 . . Wheels 741 | . . 117 337 287 Hover . | . . . . . Flight . | . . . . . Fastest Speed 50 | 50 160 90 90 105 Average Speed 125 | 116 160 120 119 123 Slowest Speed 800 | 160 160 160 120 800 Overloaded Moves . | . . . . . Propulsion Burnouts . | . . . . . Robots Hopped . | . . . . . Cave-ins Triggered . | . . . . . Exploration Rate (%) 31 | 5 33 43 36 42 Regions Visited 4 Branch Regions . Pre-discovered Areas . | . . . . . Known Exits Taken 1 | . . . 1 . Unknown Exits Taken 3 | 1 1 1 . . Scrap Searched . | . . . . . Spaces Dug . | . . . . . Terrain Destroyed 87 | . . 87 . . Melee . | . . . . . Projectile . | . . . . . AOE 87 | . . 87 . . Terrain Rammed . | . . . . . Walls Destroyed . | . . . . . Machines Disabled . | . . . . . Actions | -11 -10 -9 -8 -8 --------- Run | Scr Mat Mat Mat Gar Total 1931 | 76 227 842 423 363 Wait 4 | . 4 . . . Move 1563 | 64 195 680 336 288 Hop . | . . . . . Pick Up 49 | 6 3 27 11 2 Fast Attach 2 | 2 . . . . Attach 23 | 4 3 10 4 2 Detach 2 | . 1 1 . . Swap 16 | . 1 8 6 1 Drop 34 | . 2 23 8 1 Fire 81 | . 18 56 7 . Melee 140 | . . 36 51 53 Ram . | . . . . . Kick 1 | . . 1 . . Crush . | . . . . . Escape Stasis 16 | . . . . 16 Rewire . | . . . . . Trap . | . . . . . Miscellaneous . | . . . . . Route ------- -11/Scrapyard -10/Materials -9/Materials -8/Materials (discovered 2 exits: [*Sto] / Gar) -8/Garrison (discovered 1 exit: [*Mat]) History --------- Turn | Location | Event 7 | -11/Scrapyard | Discovered new exit (range 16) 88 | -11/Scrapyard | Entered Materials 301 | -10/Materials | Build established: Mutant 438 | -10/Materials | Discovered new exit (range 15) 462 | -10/Materials | Entered another Materials area 462 | -9/Materials | Evolved 2 slots: Weapon x2 848 | -9/Materials | Destroyed 7 combat bots 1523 | -9/Materials | Discovered new exit (range 6) 1585 | -9/Materials | Entered another Materials area 1585 | -8/Materials | Evolved 2 slots: Utility x2 1641 | -8/Materials | Discovered new exit (range 6) 1987 | -8/Materials | Build established: Hacker-Mutant 2150 | -8/Materials | Identified exit to Garrison 2156 | -8/Materials | Entered Garrison 2162 | -8/Garrison | Installed Relay Interface Framework 2196 | -8/Garrison | Triggered checkpoint 2237 | -8/Garrison | Garrison Relay disabled 2346 | -8/Garrison | Triggered checkpoint 2432 | -8/Garrison | Lost 3 parts (1p1u1w) 2438 | -8/Garrison | Destroyed 7 combat bots 2442 | -8/Garrison | Triggered checkpoint 2492 | -8/Garrison | Triggered checkpoint 2533 | -8/Garrison | Garrison Relay disabled 2562 | -8/Garrison | Discovered new exit (range 10) 2611 | -8/Garrison | Core integrity fell below 50% 2666 | -8/Garrison | Self-destructed Last Messages --------------- 02533_ Relay Coupler [Hunter] tumbles out of relay unit. 02562_ EXIT=FOUND 02610_ Critical hit (Burn: +37). 02614_ Arm. Wheel destroyed. 02614_ Critical hit (Burn: +37). 02620_ Destroyed Hvy. Laser. 02626_ Katana destroyed. 02642_ Triggered Stasis Trap. 02642_ A bubble of rippling energy engulfs the area. 02642_ Field strength at 90. 02643_ Field strength at 80. 02644_ Field strength at 70. 02645_ Field strength at 60. 02646_ Field strength at 50. 02647_ Field strength at 40. 02648_ Field strength at 30. 02649_ Field strength at 20. 02650_ Field strength at 7. 02651_ Stasis field depleted. 02657_ Arm. Wheel destroyed. Map ----- +----------------------------------------------------+ | ?????????????# #???????????????????????????????? | | ??????#??????# #???????????????????????????????? | | ??## ##""""## #???????????????????????????????? | | ?## #???????????????????????????????? | | ? #???????????????????????????????? | | ?? #???????????????????????????????? | | ??# ##^^ ## #???????????????????????????????? | | ??# ## ^ ## ###?????????????????????????????? | | ??" #?????????????????????????????? | | ??" #?????????????????????????????? | | ??" #?????????????????????????????? | | ??" ??????????????????????????????? | | ??# ## ## #???????????????????????????????? | | ### ## ## ###########?????????????????????? | | #?????????????????????? | | [%= #?????????????????????? | | ###%!= ######## #?????????????????????? | | ##!%## ######??????#gg#?????????????????????? | | *#?#%%## #???????????# #?????????????????????? | | =###=[#######???????????# #?????????????????????? | | !%=!* #?????????????????# #?????????????????????? | | %###%!#?????????????????# ^#?????????????????????? | | [#?#= #?????????????????# ^#?????????????????????? | | #### #?????????????????# ^#?????????????????????? | | #?????????????????# #?????????????????????? | | #?????????????????#@ #?????????????????????? | | #######?????????######### #?????????????????????? | | ????????????????# #?????????????????????? | | ????????????????# ####### ############??????????? | | ????????????????# #?????# #??????????? | | ????????????????# ###???# #??????????? | | ????????????????#[% #???########### < #??????????? | | ????????????????#%* #?????????????? #??????????? | | ????????????????#=[%#???????????????###??????????? | | ????????????????# ###????????????????????????????? | | ????????????????# #??????????????????????????????? | | ????????????????# #??????????????????????????????? | | ????????????????# #??????????????????????????????? | | ??????????????### #??????????????????????????????? | | ??????????????#"# #??????????????????????????????? | | ??????????????#"! #??????????????????????????????? | | ??????????????# ! #??????????????????????????????? | | ??????????????#"! #??????????????????????????????? | | ??????????????#"###??????????????????????????????? | | ??????????????##?????????????????????????????????? | | ?????????????????????????????????????????????????? | | ?????????????????????????????????????????????????? | | ?????????????????????????????????????????????????? | | ?????????????????????????????????????????????????? | | ?????????????????????????????????????????????????? | +----------------------------------------------------+ Best States ------------- Heat Dissipation 31 Energy Generation 14 Energy Capacity 280 Matter Stores 300 Matter Capacity 300 Sight Range 16 Terrain Scan Density 10 Armor Coverage 225 Resistance: KI 20 Resistance: TH 20 Resistance: EX 20 Resistance: EM 20 Resistance: I 20 Resistance: S 20 Resistance: P 20 Power Shielding 33 Evasion (%) 55 Recoil Reduction 2 Offensive Hacking 20 Relay Coupler Types 1 Relay Coupler Value 28 Item Schematics ----------------- None Robot Schematics ------------------ None Fabricated ------------ Nothing Alien Tech Used ----------------- None Achievements -------------- None Challenges ------------ None Game ------ Seed GatlingTerrainClaymores Manual? 0 Play Time 00:48:41 Cumulative 60.9 hours Start 2022.04.16 @ 12:29:13 End 2022.04.16 @ 15:46:32 Sessions 1 Manual Loads 0 Difficulty Adventurer Special Mode None Game No. 56 Rogue 49 Adventurer 7 Explorer 0 Win Type - Total 0 Types 0/0/0/0/0/0/0/0/0 Lore% 6 Gallery% 27 Achievement% 13 Wizard Run 0 Options --------- ASCII 0 Keyboard 0 Movement Mouse Keybinds 0 Fullscreen 1 Font 18/SmallcapsGlow Map View 76x50 Tactical HUD 1 Map Filters NONE Filters NONE Steam 1 RUN: 9ffbdfda-292c-4418-b63a-bc81dbe61532